[Event "2nd Turkish League 2017"]
[Site "Konya"]
[Date "2017.07.21"]
[Round "7"]
[White "Lale, Omer Faruk"]
[Black "Duman, Aydin"]
[Result "1/2-1/2"]
[ECO "A53"]
[WhiteElo "1852"]
[BlackElo "2056"]
[Annotator "NA"]
[PlyCount "129"]
[EventType "team-tourn"]
[EventCountry "TUR"]
[SourceTitle "playchess.com"]
[Source "ChessBase"]
[SourceQuality "1"]
[TimeControl "5400+30"]

1. d4 {[%emt 0:00:30]} Nf6 {[%emt 0:08:00]} 2. c4 {[%emt 0:00:30]} d6 {[%emt 0:05:30]} 3. Nc3 {[%emt 0:01:30]} e5 {[%emt 0:01:30]} 4. dxe5 {[%emt 0:09:30]} dxe5 {[%emt 0:00:30]} 5. Qxd8+ {[%emt 0:00:30]} Kxd8 {[%emt 0:00:00]} 6. Bg5 {[%emt 0:00:30]} Be6 {[%emt 0:03:00]} 7. O-O-O+ $11 {[%emt 0:01:30] LiveBook: 13 Games} Nbd7 {[%emt 0:00:30]} 8. Nf3 {[%emt 0:00:30]} Kc8 {[%emt 0:00:00]} 9. e3 {[%emt 0:09:30]} Ng4 {[%emt 0:05:00]} 10. Bh4 {[%emt 0:07:30]} f6 {[%emt 0:00:30]} 11. h3 {[%emt 0:05:30]} Nh6 {[%emt 0:01:30]} 12. g4 {[%emt 0:01:30]} Nf7 {[%emt 0:01:30]} 13. Nd2 {[%emt 0:11:30]} c6 {[%emt 0:02:30]} 14. f4 {[%emt 0:01:30]} Nd6 {[%emt 0:11:30]} 15. Be2 {[%emt 0:11:30]} Kc7 {[%emt 0:05:30]} 16. Bg3 {[%emt 0:01:30]} exf4 {[%emt 0:18:30]} 17. exf4 {[%emt 0:06:30]} f5 {[%emt 0:01:30]} 18. Nb3 {[%emt 0:03:30]} Nf6 {[%emt 0:12:30]} 19. Nc5 {[%emt 0:02:30]} Re8 {[%emt 0:00:38]} 20. g5 {[%emt 0:06:52]} Nd7 {[%emt 0:01:46]} 21. Nxd7 {[%emt 0:00:49]} Bxd7 {[%emt 0:00:13]} 22. Bf2 {[%emt 0:04:40]} Ne4 {[%emt 0:04:45]} 23. Nxe4 {[%emt 0:00:19]} fxe4 {[%emt 0:00:41]} 24. Bxa7 {[%emt 0:01:28]} c5 {[%emt 0:02:15]} 25. Bb6+ {[%emt 0:00:56]} Kc6 {[%emt 0:00:10]} 26. Ba5 {[%emt 0:01:27]} Bd6 {[%emt 0:00:15]} 27. Rxd6+ {[%emt 0:00:54]} Kxd6 {[%emt 0:00:40]} 28. Bc3 {[%emt 0:00:12]} Rhf8 {[%emt 0:01:56]} 29. Rd1+ {[%emt 0:02:18]} Kc6 {[%emt 0:01:56]} 30. Be5 {[%emt 0:00:30]} Rxe5 {[%emt 0:00:13]} 31. fxe5 {[%emt 0:00:30]} Bxh3 {[%emt 0:00:00]} 32. Rh1 {[%emt 0:02:06]} Bf5 {[%emt 0:00:22]} 33. Kd2 {[%emt 0:01:20]} Bg6 {[%emt 0:01:47]} 34. Bh5 {[%emt 0:01:33]} Re8 {[%emt 0:05:24]} 35. Bxg6 {[%emt 0:01:49]} hxg6 {[%emt 0:00:01]} 36. Ke3 {[%emt 0:00:43]} Rxe5 {[%emt 0:00:30]} 37. Rg1 {[%emt 0:00:00]} Kd6 {[%emt 0:00:52]} 38. a3 {[%emt 0:01:31]} Ke6 {[%emt 0:00:30]} 39. b4 {[%emt 0:00:30]} b6 {[%emt 0:00:30]} 40. b5 {[%emt 0:00:30]} Kf5 {[%emt 0:02:16]} 41. Rd1 {[%emt 0:00:04]} Ke6 {[%emt 0:01:15]} 42. Rd8 {[%emt 0:00:42]} Rxg5 {[%emt 0:01:04]} 43. Rb8 {[%emt 0:00:08]} Ke5 {[%emt 0:00:17]} 44. Re8+ {[%emt 0:00:40]} Kf5 {[%emt 0:01:01]} 45. Rf8+ {[%emt 0:00:10]} Ke5 {[%emt 0:00:32]} 46. Re8+ {[%emt 0:00:05]} Kd6 {[%emt 0:00:26]} 47. Rb8 {[%emt 0:00:31]} Ke5 {[%emt 0:01:06]} 48. Re8+ {[%emt 0:00:05]} Kd6 {[%emt 0:00:02]} 49. Rb8 {[%emt 0:00:07]} Kc7 {[%emt 0:00:51]} 50. Rg8 {[%emt 0:01:07]} Rg3+ {[%emt 0:00:30]} 51. Kxe4 {[%emt 0:00:00]} Rg4+ {[%emt 0:00:00]} 52. Ke5 {[%emt 0:00:42]} Rxc4 {[%emt 0:01:01]} 53. Rxg7+ {[%emt 0:00:07]} Kc8 {[%emt 0:00:23]} 54. Rxg6 {[%emt 0:01:24]} Kc7 {[%emt 0:00:51]} 55. Rg7+ {[%emt 0:00:30]} Kc8 {[%emt 0:00:00]} 56. Kd6 {[%emt 0:00:14]} Rh4 {[%emt 0:00:10]} 57. Rg8+ {[%emt 0:01:54]} Kb7 {[%emt 0:00:30]} 58. Rg7+ {[%emt 0:00:30]} Kc8 {[%emt 0:00:00]} 59. Kc6 {[%emt 0:00:51]} Rh6+ {[%emt 0:00:00]} 60. Kd5 {[%emt 0:00:04]} Rh5+ {[%emt 0:00:00]} 61. Kd6 {[%emt 0:01:05]} Rh6+ {[%emt 0:00:00]} 62. Kd5 {[%emt 0:00:36]} Rh5+ {[%emt 0:00:05]} 63. Kc6 {[%emt 0:00:35]} Rh6+ {[%emt 0:00:30]} 64. Kd5 {[%emt 0:00:30]} Rh5+ {[%emt 0:00:00]} 65. Ke4 {[%emt 0:00:47]} 1/2-1/2

[Event "2nd Turkish League 2017"]
[Site "Konya"]
[Date "2017.07.21"]
[Round "7"]
[White "Kutlu, Sedat"]
[Black "Bayraktar, Armagan"]
[Result "0-1"]
[ECO "B77"]
[WhiteElo "1824"]
[BlackElo "1889"]
[Annotator "NA"]
[PlyCount "102"]
[EventType "team-tourn"]
[EventCountry "TUR"]
[SourceTitle "playchess.com"]
[Source "ChessBase"]
[SourceQuality "1"]
[TimeControl "5400+30"]

1. e4 {[%emt 0:00:30]} c5 {[%emt 0:01:00]} 2. Nf3 {[%emt 0:00:00]} d6 {[%emt 0:01:30]} 3. d4 {[%emt 0:00:00]} cxd4 {[%emt 0:00:30]} 4. Nxd4 {[%emt 0:00:00]} g6 {[%emt 0:00:30]} 5. Nc3 {[%emt 0:01:00]} Bg7 {[%emt 0:00:30]} 6. Be3 {[%emt 0:01:30]} Nf6 {[%emt 0:00:30]} 7. f3 {[%emt 0:00:30]} O-O {[%emt 0:00:30]} 8. Qd2 {[%emt 0:00:30]} Nc6 {[%emt 0:00:30] LiveBook: 7769 Games} 9. Bc4 $11 {[%emt 0:05:30]} Na5 {[%emt 0:03:30]} 10. Be2 {[%emt 0:01:30]} Bd7 {[%emt 0:04:30]} 11. Nb3 {[%emt 0:09:30]} a6 {[%emt 0:12:30]} 12. Bh6 {[%emt 0:04:30]} Rc8 {[%emt 0:15:30]} 13. Bxg7 {[%emt 0:00:30]} Kxg7 {[%emt 0:00:30]} 14. Qd4 {[%emt 0:04:30]} Nc6 {[%emt 0:00:30]} 15. Qd2 {[%emt 0:00:30]} b5 {[%emt 0:07:30]} 16. Nd5 {[%emt 0:11:30]} Nxd5 {[%emt 0:10:30]} 17. Qxd5 {[%emt 0:00:30]} Be6 {[%emt 0:01:30]} 18. Qd2 {[%emt 0:00:30]} Qb6 {[%emt 0:00:30]} 19. f4 {[%emt 0:05:30]} a5 {[%emt 0:06:30]} 20. Bd3 {[%emt 0:11:30]} a4 {[%emt 0:05:30]} 21. Nc1 {[%emt 0:00:30]} f6 {[%emt 0:04:30]} 22. Ne2 {[%emt 0:02:30]} b4 {[%emt 0:01:30]} 23. f5 {[%emt 0:00:30]} Bf7 {[%emt 0:00:30]} 24. h4 {[%emt 0:02:30]} Ne5 {[%emt 0:02:47]} 25. Rf1 {[%emt 0:07:30]} Rfd8 {[%emt 0:01:28]} 26. Rf4 {[%emt 0:12:47]} g5 {[%emt 0:03:49]} 27. hxg5 {[%emt 0:00:39]} fxg5 {[%emt 0:00:16]} 28. Rf1 {[%emt 0:05:01]} h6 {[%emt 0:00:12]} 29. Ng3 {[%emt 0:01:40]} Kf6 {[%emt 0:05:01]} 30. Rh1 {[%emt 0:01:33]} Rh8 {[%emt 0:00:53]} 31. b3 {[%emt 0:04:00]} a3 {[%emt 0:02:54]} 32. Ke2 {[%emt 0:01:01]} h5 {[%emt 0:02:54]} 33. Rh3 {[%emt 0:02:09]} h4 {[%emt 0:01:07]} 34. Rah1 {[%emt 0:00:34]} Rhg8 {[%emt 0:01:54]} 35. Rxh4 {[%emt 0:02:05]} Nxd3 {[%emt 0:01:32]} 36. Rh6+ {[%emt 0:00:30]} Ke5 {[%emt 0:00:30]} 37. Qxd3 {[%emt 0:01:15]} Rc3 {[%emt 0:01:03]} 38. Qd2 {[%emt 0:01:54]} Rxg3 {[%emt 0:00:30]} 39. Kd1 {[%emt 0:00:00]} Qd4 {[%emt 0:00:28]} 40. Qxd4+ {[%emt 0:01:10]} Kxd4 {[%emt 0:00:30]} 41. Rh7 {[%emt 0:00:00]} Rf8 {[%emt 0:00:23]} 42. Rg7 {[%emt 0:00:00]} Rxg2 {[%emt 0:00:34]} 43. Rhh7 {[%emt 0:00:17]} Ke3 {[%emt 0:00:35]} 44. Rh1 {[%emt 0:00:31]} Bh5+ {[%emt 0:00:43]} 45. Kc1 {[%emt 0:00:50]} Rc8 {[%emt 0:00:19]} 46. c4 {[%emt 0:00:57]} Bf3 {[%emt 0:00:22]} 47. Rxe7 {[%emt 0:00:22]} Rxa2 {[%emt 0:00:20]} 48. Re1+ {[%emt 0:00:21]} Be2 {[%emt 0:00:37]} 49. f6 {[%emt 0:00:53]} Ra1+ {[%emt 0:00:12]} 50. Kc2 {[%emt 0:00:30]} Rxe1 {[%emt 0:00:30]} 51. f7 {[%emt 0:00:30]} Bd3# {[%emt 0:00:24]} 0-1

[Event "2nd Turkish League 2017"]
[Site "Konya"]
[Date "2017.07.21"]
[Round "7"]
[White "Yuksel, Davut Can"]
[Black "Buker, Muhittin"]
[Result "1/2-1/2"]
[ECO "E61"]
[WhiteElo "1773"]
[BlackElo "2006"]
[Annotator "NA"]
[PlyCount "155"]
[EventType "team-tourn"]
[EventCountry "TUR"]
[SourceTitle "playchess.com"]
[Source "ChessBase"]
[SourceQuality "1"]
[TimeControl "5400+30"]

1. d4 {[%emt 0:00:30]} Nf6 {[%emt 0:01:00]} 2. c4 {[%emt 0:00:00]} g6 {[%emt 0:01:30]} 3. Nf3 {[%emt 0:01:00]} Bg7 {[%emt 0:00:30]} 4. Nc3 {[%emt 0:00:30]} O-O {[%emt 0:00:00]} 5. Bf4 {[%emt 0:00:30]} d6 {[%emt 0:06:00]} 6. e3 {[%emt 0:00:00]} Nbd7 {[%emt 0:00:30]} 7. h3 {[%emt 0:00:00]} Re8 {[%emt 0:01:30]} 8. Be2 {[%emt 0:00:00]} c6 {[%emt 0:00:30]} 9. O-O {[%emt 0:00:00]} a6 {[%emt 0:01:30]} 10. a4 {[%emt 0:03:30]} a5 {[%emt 0:03:30]} 11. Bh2 {[%emt 0:05:30]} Qb6 $16 {[%emt 0:00:30]} 12. Qc2 {[%emt 0:05:30]} e5 {[%emt 0:07:30]} 13. Rfd1 {[%emt 0:06:30]} Qc7 {[%emt 0:03:30]} 14. c5 {[%emt 0:03:30]} Bf8 {[%emt 0:00:30]} 15. Rac1 {[%emt 0:08:30]} b6 {[%emt 0:00:30]} 16. cxd6 {[%emt 0:07:30]} Bxd6 {[%emt 0:04:30]} 17. dxe5 {[%emt 0:00:30]} Nxe5 {[%emt 0:08:30]} 18. Rxd6 {[%emt 0:07:30]} Qxd6 {[%emt 0:00:30]} 19. Nxe5 {[%emt 0:02:30]} Rxe5 {[%emt 0:01:30]} 20. Rd1 {[%emt 0:01:30]} Qe7 {[%emt 0:00:30]} 21. Bxe5 {[%emt 0:00:30]} Qxe5 {[%emt 0:00:00]} 22. Rd8+ {[%emt 0:03:30]} Kg7 {[%emt 0:00:00]} 23. Qd2 {[%emt 0:02:30]} Rb8 {[%emt 0:07:30]} 24. Qd6 {[%emt 0:02:30]} Qxd6 {[%emt 0:03:30]} 25. Rxd6 {[%emt 0:00:30]} Bd7 {[%emt 0:00:30]} 26. Bf3 {[%emt 0:00:30]} Rc8 {[%emt 0:00:30]} 27. e4 {[%emt 0:00:30]} Rc7 {[%emt 0:00:30]} 28. e5 {[%emt 0:09:30]} Ne8 {[%emt 0:00:30]} 29. Rd1 {[%emt 0:02:30]} Kf8 {[%emt 0:01:30]} 30. Ne4 {[%emt 0:01:30]} Ke7 {[%emt 0:00:30]} 31. Kf1 {[%emt 0:05:30]} Bf5 {[%emt 0:01:30]} 32. Nd6 {[%emt 0:01:30]} Bc2 {[%emt 0:00:30]} 33. Nxe8 {[%emt 0:01:00]} Kxe8 {[%emt 0:00:30]} 34. Rd4 {[%emt 0:01:54]} Bb3 {[%emt 0:00:30]} 35. Bd1 {[%emt 0:04:41]} Rd7 {[%emt 0:03:30]} 36. Rxd7 {[%emt 0:03:31]} Bc4+ {[%emt 0:00:30]} 37. Rd3 {[%emt 0:00:00]} Bxd3+ {[%emt 0:00:00]} 38. Ke1 {[%emt 0:00:00]} Ke7 {[%emt 0:00:00]} 39. Kd2 {[%emt 0:00:21]} Be4 {[%emt 0:00:30]} 40. g3 {[%emt 0:01:26]} Bg2 {[%emt 0:10:30]} 41. h4 {[%emt 0:00:18]} Bd5 {[%emt 0:02:30]} 42. Ke3 {[%emt 0:00:31]} Ke6 {[%emt 0:01:30]} 43. f4 {[%emt 0:00:26]} h5 {[%emt 0:03:30]} 44. Bc2 {[%emt 0:02:33]} Ke7 {[%emt 0:00:00]} 45. Kd4 {[%emt 0:00:26]} Be6 {[%emt 0:00:00]} 46. Be4 {[%emt 0:02:00]} Kd7 {[%emt 0:00:30]} 47. Kc3 {[%emt 0:00:48]} Kc7 {[%emt 0:02:30]} 48. Bd3 {[%emt 0:00:47]} Kd7 {[%emt 0:06:50]} 49. Be2 {[%emt 0:00:52]} Ke7 {[%emt 0:00:43]} 50. Bd3 {[%emt 0:01:26]} Bd7 {[%emt 0:01:32]} 51. Bc2 {[%emt 0:01:28]} Be8 {[%emt 0:05:43]} 52. Kd4 {[%emt 0:01:07]} Ke6 {[%emt 0:03:35]} 53. Ke4 {[%emt 0:00:40]} Ke7 {[%emt 0:03:53]} 54. f5 {[%emt 0:00:57]} f6 {[%emt 0:02:16]} 55. e6 {[%emt 0:00:35]} b5 {[%emt 0:02:36]} 56. Kf4 {[%emt 0:00:32]} gxf5 {[%emt 0:00:09]} 57. Kxf5 {[%emt 0:00:13]} c5 {[%emt 0:00:01]} 58. axb5 {[%emt 0:01:55]} Bxb5 {[%emt 0:00:15]} 59. Bd1 {[%emt 0:00:20]} Bd3+ {[%emt 0:00:57]} 60. Kf4 {[%emt 0:00:01]} Bg6 {[%emt 0:00:33]} 61. Bb3 {[%emt 0:00:25]} Bd3 {[%emt 0:00:43]} 62. Bd1 {[%emt 0:01:36]} Bg6 {[%emt 0:00:31]} 63. Bb3 {[%emt 0:00:47]} Bd3 {[%emt 0:00:26]} 64. Bd1 {[%emt 0:01:12]} Bg6 {[%emt 0:00:30]} 65. g4 {[%emt 0:00:00]} hxg4 {[%emt 0:00:31]} 66. Bxg4 {[%emt 0:00:00]} c4 {[%emt 0:01:31]} 67. h5 {[%emt 0:00:10]} Bh7 {[%emt 0:00:58]} 68. Bf5 {[%emt 0:01:03]} Bg8 {[%emt 0:01:38]} 69. h6 {[%emt 0:00:02]} a4 {[%emt 0:00:30]} 70. h7 {[%emt 0:00:53]} Bxh7 {[%emt 0:00:30]} 71. Bxh7 {[%emt 0:00:00]} Kxe6 {[%emt 0:00:34]} 72. Bg8+ {[%emt 0:00:00]} Kd6 {[%emt 0:00:40]} 73. Bxc4 {[%emt 0:00:12]} Kc5 {[%emt 0:00:00]} 74. Ba2 {[%emt 0:01:53]} Kb4 {[%emt 0:00:00]} 75. Ke3 {[%emt 0:01:05]} a3 {[%emt 0:00:11]} 76. b3 {[%emt 0:00:34]} Kc3 {[%emt 0:00:05]} 77. Ke2 {[%emt 0:00:40]} f5 {[%emt 0:00:18]} 78. b4 {[%emt 0:00:44]} 1/2-1/2

[Event "2nd Turkish League 2017"]
[Site "Konya"]
[Date "2017.07.21"]
[Round "7"]
[White "Ceylan, Sezer"]
[Black "Ibik, Halit Yavuz"]
[Result "0-1"]
[ECO "B96"]
[WhiteElo "1714"]
[BlackElo "2004"]
[Annotator "NA"]
[PlyCount "60"]
[EventType "team-tourn"]
[EventCountry "TUR"]
[SourceTitle "playchess.com"]
[Source "ChessBase"]
[SourceQuality "1"]
[TimeControl "5400+30"]

1. e4 {[%emt 0:00:30]} c5 {[%emt 0:01:00]} 2. Nf3 {[%emt 0:00:30]} d6 {[%emt 0:00:30]} 3. d4 {[%emt 0:00:30]} cxd4 {[%emt 0:00:30]} 4. Nxd4 {[%emt 0:00:30]} Nf6 {[%emt 0:00:30]} 5. Nc3 {[%emt 0:00:00]} a6 {[%emt 0:00:00]} 6. Bg5 {[%emt 0:00:00]} Nbd7 {[%emt 0:00:00]} 7. f4 {[%emt 0:00:30]} e6 {[%emt 0:00:00]} 8. Qf3 {[%emt 0:00:30]} Qc7 {[%emt 0:00:00]} 9. g4 {[%emt 0:00:30]} b5 {[%emt 0:00:00]} 10. Bxf6 {[%emt 0:01:30]} Nxf6 {[%emt 0:01:00]} 11. g5 {[%emt 0:00:30]} Nd7 {[%emt 0:00:30]} 12. O-O-O {[%emt 0:03:30]} Bb7 {[%emt 0:02:30]} 13. Bh3 {[%emt 0:04:30]} b4 {[%emt 0:03:30]} 14. Nce2 {[%emt 0:04:30]} Nc5 {[%emt 0:02:30]} 15. Ng3 $17 {[%emt 0:01:30]} ({White should try} 15. Rhf1 $15) 15... d5 {[%emt 0:03:30]} 16. f5 {[%emt 0:14:30]} dxe4 {[%emt 0:07:30]} 17. Qe3 {[%emt 0:07:30]} Bd6 {[%emt 0:05:30]} 18. Rhf1 {[%emt 0:01:30]} exf5 {[%emt 0:29:30]} 19. Ndxf5 {[%emt 0:10:30]} Be5 {[%emt 0:00:30]} 20. Nh5 {[%emt 0:00:00]} O-O {[%emt 0:09:30]} 21. Nfxg7 {[%emt 0:11:00]} Nd3+ {[%emt 0:16:50]} 22. Rxd3 {[%emt 0:02:30]} exd3 {[%emt 0:00:37]} 23. Qxd3 {[%emt 0:00:30]} Bxg7 {[%emt 0:04:31]} 24. Nf6+ {[%emt 0:01:30]} Bxf6 {[%emt 0:00:37]} 25. gxf6 {[%emt 0:00:00]} Qe5 {[%emt 0:00:41]} 26. Bf5 {[%emt 0:01:00]} Rfe8 {[%emt 0:01:11]} 27. Qd1 {[%emt 0:06:30]} Kh8 {[%emt 0:04:04]} 28. Bd3 {[%emt 0:04:30]} Rad8 {[%emt 0:02:24]} 29. Qg4 {[%emt 0:01:30]} Qe3+ {[%emt 0:00:23]} 30. Kd1 {[%emt 0:00:30]} Rxd3+ {[%emt 0:00:32]} 0-1

[Event "2nd Turkish League 2017"]
[Site "Konya"]
[Date "2017.07.21"]
[Round "7"]
[White "Kabuk, Erdem"]
[Black "Caglar, Sadullah B."]
[Result "1-0"]
[ECO "C06"]
[WhiteElo "1710"]
[BlackElo "1835"]
[Annotator "NA"]
[PlyCount "61"]
[EventType "team-tourn"]
[EventCountry "TUR"]
[SourceTitle "playchess.com"]
[Source "ChessBase"]
[SourceQuality "1"]
[TimeControl "5400+30"]

1. e4 {[%emt 0:00:30]} e6 {[%emt 0:01:00]} 2. d4 {[%emt 0:00:30]} d5 {[%emt 0:00:30]} 3. Nd2 {[%emt 0:00:30]} Nf6 {[%emt 0:00:00]} 4. Bd3 {[%emt 0:00:30]} c5 {[%emt 0:01:00]} 5. e5 {[%emt 0:00:30]} Nfd7 {[%emt 0:00:30]} 6. c3 {[%emt 0:00:00]} Nc6 {[%emt 0:00:00]} 7. Ne2 {[%emt 0:00:00]} g6 {[%emt 0:01:00]} 8. Nf3 {[%emt 0:10:30]} Bg7 {[%emt 0:01:30]} 9. h4 {[%emt 0:00:30]} h5 {[%emt 0:07:30]} 10. Nf4 {[%emt 0:00:30]} Nf8 {[%emt 0:00:30]} 11. Rh3 {[%emt 0:06:30]} c4 {[%emt 0:03:30]} 12. Bc2 {[%emt 0:01:30]} Bd7 {[%emt 0:01:30]} 13. Ng5 {[%emt 0:01:30]} Qe7 {[%emt 0:01:30]} 14. Rf3 {[%emt 0:03:30]} Nd8 {[%emt 0:02:30]} 15. b3 {[%emt 0:03:30]} Bb5 {[%emt 0:06:30]} 16. a4 {[%emt 0:04:30]} cxb3 {[%emt 0:05:30]} 17. Bxg6 {[%emt 0:01:30]} Nxg6 {[%emt 0:00:30]} 18. Nxg6 {[%emt 0:00:30]} fxg6 {[%emt 0:00:30]} 19. axb5 {[%emt 0:00:30]} Rg8 {[%emt 0:03:30]} 20. Qxb3 {[%emt 0:03:30]} Bf8 {[%emt 0:01:30]} 21. Rf6 {[%emt 0:07:30]} b6 {[%emt 0:07:30]} 22. Qc2 {[%emt 0:03:30]} Qg7 {[%emt 0:02:30]} 23. Nxe6 {[%emt 0:01:30]} Nxe6 {[%emt 0:00:30]} 24. Rxe6+ {[%emt 0:00:00]} Kd7 {[%emt 0:00:00]} 25. Rxb6 {[%emt 0:00:00]} axb6 {[%emt 0:01:00]} 26. Rxa8 {[%emt 0:00:30]} Ke6 {[%emt 0:00:00]} 27. Bg5 {[%emt 0:01:30]} Qb7 {[%emt 0:01:00]} 28. Ra6 {[%emt 0:01:30]} Be7 {[%emt 0:08:30]} 29. Bxe7 {[%emt 0:00:30]} Kxe7 {[%emt 0:00:00]} 30. Qd2 {[%emt 0:01:30]} Ra8 {[%emt 0:01:00]} 31. Qg5+ {[%emt 0:00:00]} 1-0

[Event "2nd Turkish League 2017"]
[Site "Konya"]
[Date "2017.07.21"]
[Round "7"]
[White "Atayman, Evren"]
[Black "Aytekin, Murat Eren"]
[Result "0-1"]
[ECO "A12"]
[WhiteElo "1593"]
[BlackElo "2201"]
[Annotator "NA"]
[PlyCount "69"]
[EventType "team-tourn"]
[EventCountry "TUR"]
[SourceTitle "playchess.com"]
[Source "ChessBase"]
[SourceQuality "1"]
[TimeControl "5400+30"]

1. b3 {[%emt 0:00:30]} d5 {[%emt 0:03:00]} 2. Bb2 {[%emt 0:00:00]} Nf6 {[%emt 0:00:30]} 3. e3 {[%emt 0:03:00]} Bf5 {[%emt 0:00:30]} 4. Nf3 {[%emt 0:00:30]} e6 {[%emt 0:02:30]} 5. Be2 {[%emt 0:02:30] LiveBook: 98 Games} Bd6 {[%emt 0:00:30]} 6. O-O {[%emt 0:02:30]} Nbd7 {[%emt 0:01:30]} 7. d4 {[%emt 0:02:30]} O-O {[%emt 0:01:30]} 8. c4 {[%emt 0:03:30]} c6 {[%emt 0:00:00]} 9. Nbd2 {[%emt 0:02:30]} h6 {[%emt 0:00:00]} 10. Ne5 {[%emt 0:01:30]} a5 {[%emt 0:03:30]} 11. a3 {[%emt 0:03:30]} Ne4 {[%emt 0:02:30]} 12. Nxe4 {[%emt 0:07:30]} Bxe4 {[%emt 0:00:00]} 13. Bd3 {[%emt 0:03:30]} Bxe5 {[%emt 0:03:00]} 14. dxe5 {[%emt 0:03:30]} Bxd3 {[%emt 0:01:30]} 15. Qxd3 $11 {[%emt 0:00:30]} Nc5 {[%emt 0:01:30]} 16. Qc2 {[%emt 0:17:30]} Qb6 {[%emt 0:08:30]} 17. cxd5 {[%emt 0:04:30]} Nxb3 {[%emt 0:01:30]} 18. dxe6 {[%emt 0:11:30]} Nxa1 {[%emt 0:01:30]} 19. exf7+ {[%emt 0:00:30]} Rxf7 {[%emt 0:00:30]} 20. Bxa1 {[%emt 0:00:30]} Re8 {[%emt 0:04:30]} 21. Bd4 {[%emt 0:05:30]} c5 {[%emt 0:04:30]} 22. Ba1 {[%emt 0:07:42]} Qc7 {[%emt 0:11:30]} 23. f4 {[%emt 0:01:29]} b5 {[%emt 0:02:30]} 24. Qg6 {[%emt 0:01:47]} c4 {[%emt 0:10:30]} 25. e6 {[%emt 0:01:11]} Rff8 {[%emt 0:00:30]} 26. Be5 {[%emt 0:01:37]} Qb7 {[%emt 0:05:30]} 27. f5 {[%emt 0:02:34]} b4 {[%emt 0:00:30]} 28. axb4 {[%emt 0:06:44]} axb4 {[%emt 0:00:30]} 29. Rf4 {[%emt 0:00:10]} b3 {[%emt 0:04:30]} 30. Rg4 {[%emt 0:02:50]} Re7 {[%emt 0:03:30]} 31. Bb2 {[%emt 0:01:02]} c3 {[%emt 0:01:30]} 32. f6 {[%emt 0:00:18]} cxb2 {[%emt 0:05:11]} 33. fxe7 {[%emt 0:01:00]} Qxe7 {[%emt 0:00:14]} 34. Rd4 {[%emt 0:00:35]} Qf6 {[%emt 0:00:36]} 35. Qd3 {[%emt 0:00:30]} 0-1

[Event "2nd Turkish League 2017"]
[Site "Konya"]
[Date "2017.07.21"]
[Round "7"]
[White "Sahin, Hatice"]
[Black "Simsek, Meltem"]
[Result "1/2-1/2"]
[ECO "A05"]
[WhiteElo "1560"]
[BlackElo "1752"]
[Annotator "NA"]
[PlyCount "127"]
[EventType "team-tourn"]
[EventCountry "TUR"]
[SourceTitle "playchess.com"]
[Source "ChessBase"]
[SourceQuality "1"]
[TimeControl "5400+30"]

1. Nf3 {[%emt 0:00:30]} Nf6 {[%emt 0:01:00]} 2. g3 {[%emt 0:00:00]} b5 {[%emt 0:00:30]} 3. Bg2 {[%emt 0:00:00]} Bb7 {[%emt 0:00:00]} 4. d3 {[%emt 0:01:30]} e6 {[%emt 0:00:00]} 5. Nbd2 {[%emt 0:00:30]} d5 {[%emt 0:00:00]} 6. b3 {[%emt 0:00:30]} c5 {[%emt 0:00:00]} 7. O-O {[%emt 0:01:30]} Be7 {[%emt 0:00:30]} 8. Bb2 {[%emt 0:01:30]} Nc6 {[%emt 0:02:30]} 9. Ne5 {[%emt 0:01:30]} Qc7 {[%emt 0:11:30]} 10. f4 {[%emt 0:02:30]} O-O {[%emt 0:02:30]} 11. e4 {[%emt 0:02:30]} d4 {[%emt 0:00:30]} 12. Nxc6 {[%emt 0:10:30]} Bxc6 {[%emt 0:04:30]} 13. Qe2 {[%emt 0:06:30]} Nd7 {[%emt 0:04:30]} 14. f5 {[%emt 0:04:30]} exf5 {[%emt 0:07:30]} 15. Rxf5 {[%emt 0:01:30]} g6 {[%emt 0:00:30]} 16. Rff1 {[%emt 0:00:30]} Bg5 {[%emt 0:05:30]} 17. Bc1 {[%emt 0:06:30]} Be3+ {[%emt 0:00:30]} 18. Kh1 {[%emt 0:00:30]} Ne5 {[%emt 0:08:30]} 19. h3 {[%emt 0:20:30]} Rae8 {[%emt 0:04:30]} 20. g4 {[%emt 0:05:30]} Kg7 {[%emt 0:05:30]} 21. Nf3 {[%emt 0:03:30]} Bxc1 {[%emt 0:00:00]} 22. Raxc1 {[%emt 0:00:30]} Nxf3 {[%emt 0:00:00]} 23. Bxf3 {[%emt 0:04:30]} Qe5 {[%emt 0:00:30]} 24. Qh2 {[%emt 0:01:30]} b4 {[%emt 0:01:30]} 25. Qxe5+ {[%emt 0:00:30]} Rxe5 {[%emt 0:00:00]} 26. Bg2 {[%emt 0:01:30]} Bd7 {[%emt 0:07:00]} 27. Rf2 {[%emt 0:08:34]} Rb8 {[%emt 0:05:30]} 28. Rcf1 {[%emt 0:00:51]} Be6 {[%emt 0:00:30]} 29. Ra1 {[%emt 0:00:58]} a5 {[%emt 0:05:30]} 30. a4 {[%emt 0:00:51]} Rh8 {[%emt 0:04:30]} 31. Kh2 {[%emt 0:02:05]} h5 {[%emt 0:00:40]} 32. gxh5 {[%emt 0:01:32]} Rexh5 {[%emt 0:01:03]} 33. Rf3 {[%emt 0:00:36]} Bg4 {[%emt 0:10:08]} 34. Rg3 {[%emt 0:00:40]} Be6 {[%emt 0:02:03]} 35. Rh1 {[%emt 0:00:59]} Kf6 {[%emt 0:01:37]} 36. Rf3+ {[%emt 0:01:35]} Ke5 {[%emt 0:00:12]} 37. Kg1 {[%emt 0:01:16]} g5 {[%emt 0:02:07]} 38. Rg3 {[%emt 0:00:47]} g4 {[%emt 0:00:12]} 39. hxg4 {[%emt 0:01:12]} Rxh1+ {[%emt 0:00:37]} 40. Bxh1 {[%emt 0:00:02]} Kf4 {[%emt 0:00:44]} 41. Rf3+ {[%emt 0:02:08]} Kxg4 {[%emt 0:00:04]} 42. Rf2 {[%emt 0:00:29]} Rh3 {[%emt 0:00:51]} 43. Bg2 {[%emt 0:01:36]} Re3 {[%emt 0:02:49]} 44. Kh2 {[%emt 0:00:56]} Kh4 {[%emt 0:01:07]} 45. Rf4+ {[%emt 0:00:52]} Kg5 {[%emt 0:00:30]} 46. Rf2 {[%emt 0:00:00]} Kh4 {[%emt 0:01:13]} 47. Rf4+ {[%emt 0:00:12]} Kg5 {[%emt 0:00:30]} 48. Rf2 {[%emt 0:00:00]} f6 {[%emt 0:00:28]} 49. Bf3 {[%emt 0:00:46]} Bg4 {[%emt 0:02:00]} 50. Bxg4 {[%emt 0:00:30]} Kxg4 {[%emt 0:00:00]} 51. Kg2 {[%emt 0:00:53]} Rg3+ {[%emt 0:00:36]} 52. Kh2 {[%emt 0:00:26]} Rh3+ {[%emt 0:00:39]} 53. Kg2 {[%emt 0:00:33]} Rg3+ {[%emt 0:00:30]} 54. Kh2 {[%emt 0:00:00]} Re3 {[%emt 0:00:35]} 55. Kg2 {[%emt 0:00:00]} Rg3+ {[%emt 0:00:30]} 56. Kh2 {[%emt 0:00:00]} Rf3 {[%emt 0:00:16]} 57. Kg2 {[%emt 0:00:28]} Rxf2+ {[%emt 0:00:01]} 58. Kxf2 {[%emt 0:00:30]} Kf4 {[%emt 0:00:30]} 59. Ke2 {[%emt 0:00:30]} Kg3 {[%emt 0:00:00]} 60. Ke1 {[%emt 0:00:10]} Kf3 {[%emt 0:00:27]} 61. Kf1 {[%emt 0:00:26]} Kg3 {[%emt 0:01:10]} 62. Kg1 {[%emt 0:00:28]} Kf3 {[%emt 0:00:35]} 63. Kf1 {[%emt 0:00:01]} Kg3 {[%emt 0:00:40]} 64. Kg1 {[%emt 0:00:02]} 1/2-1/2